[Event "Late-Titled-Tuesday-Blitz-December-26-2023"]
[Site "Chess.com"]
[Date "2023.12.26"]
[Round "6"]
[White "Fradi82"]
[Black "ZuraTqebuchava"]
[Result "1-0"]
[WhiteElo "2317"]
[BlackElo "2170"]
[TimeControl "180+1"]
[EndTime "15:08:03 PST"]
[Termination "Fradi82 won on time"]

1. e4 {[%clk 0:03:00.9]} 1... e5 {[%clk 0:02:57.1]} 2. d4 {[%clk 0:03:00.8]}
2... d6 {[%clk 0:02:52.5]} 3. Nf3 {[%clk 0:02:58.9]} 3... exd4 {[%clk
0:02:52.3]} 4. Nxd4 {[%clk 0:02:58.8]} 4... Nc6 {[%clk 0:02:52.9]} 5. Nc3 {[%clk
0:02:52.6]} 5... Nf6 {[%clk 0:02:47.6]} 6. Bg5 {[%clk 0:02:40.7]} 6... Be7
{[%clk 0:02:46.1]} 7. Qd2 {[%clk 0:02:37.7]} 7... h6 {[%clk 0:02:22.1]} 8. Bh4
{[%clk 0:02:32.2]} 8... Nxe4 {[%clk 0:02:10.2]} 9. Nxe4 {[%clk 0:01:29.8]} 9...
Bxh4 {[%clk 0:02:07.2]} 10. O-O-O {[%clk 0:01:29.3]} 10... Nxd4 {[%clk 0:01:43]}
11. Qxd4 {[%clk 0:01:28.3]} 11... O-O {[%clk 0:01:43.1]} 12. Bc4 {[%clk
0:01:24.1]} 12... Bf5 {[%clk 0:01:31.4]} 13. g3 {[%clk 0:01:21.3]} 13... Be7
{[%clk 0:01:05.9]} 14. g4 {[%clk 0:01:09.4]} 14... Be6 {[%clk 0:01:00.3]} 15. f4
{[%clk 0:00:57.7]} 15... Bxc4 {[%clk 0:00:55.7]} 16. Qxc4 {[%clk 0:00:57.1]}
16... c6 {[%clk 0:00:52.9]} 17. Qd3 {[%clk 0:00:45.8]} 17... d5 {[%clk
0:00:52.2]} 18. Ng3 {[%clk 0:00:45.9]} 18... Bd6 {[%clk 0:00:50.2]} 19. Kb1
{[%clk 0:00:42.3]} 19... Bxf4 {[%clk 0:00:46.5]} 20. Nh5 {[%clk 0:00:40.4]}
20... Qg5 {[%clk 0:00:37.4]} 21. Rhf1 {[%clk 0:00:37.4]} 21... Bd6 {[%clk
0:00:30.5]} 22. h3 {[%clk 0:00:37.5]} 22... a5 {[%clk 0:00:27.6]} 23. Rf5 {[%clk
0:00:37.3]} 23... Qh4 {[%clk 0:00:25.4]} 24. Qd4 {[%clk 0:00:32]} 24... f6
{[%clk 0:00:21.6]} 25. Rdf1 {[%clk 0:00:17.7]} 25... Be5 {[%clk 0:00:20.6]} 26.
Qe3 {[%clk 0:00:15.1]} 26... Rae8 {[%clk 0:00:19.2]} 27. Qd2 {[%clk 0:00:14.4]}
27... a4 {[%clk 0:00:18.4]} 28. a3 {[%clk 0:00:14.6]} 28... Bd6 {[%clk
0:00:13.5]} 29. Nxg7 {[%clk 0:00:11.3]} 29... Kxg7 {[%clk 0:00:12.3]} 30. Rh5
{[%clk 0:00:11.5]} 30... Qg5 {[%clk 0:00:10.2]} 31. Rxg5+ {[%clk 0:00:11.5]}
31... hxg5 {[%clk 0:00:09.8]} 32. Rf5 {[%clk 0:00:09.5]} 32... Re5 {[%clk
0:00:09.1]} 33. Ka2 {[%clk 0:00:09]} 33... Rxf5 {[%clk 0:00:08.7]} 34. gxf5
{[%clk 0:00:09.9]} 34... Re8 {[%clk 0:00:08.7]} 35. Qd3 {[%clk 0:00:09.9]} 35...
Re4 {[%clk 0:00:08]} 36. Qf3 {[%clk 0:00:09.6]} 36... Rf4 {[%clk 0:00:07.6]} 37.
Qc3 {[%clk 0:00:09.3]} 37... Rxf5 {[%clk 0:00:05.8]} 38. Qd4 {[%clk 0:00:09.9]}
38... Re5 {[%clk 0:00:05.8]} 39. Qxa4 {[%clk 0:00:09.7]} 39... Kg6 {[%clk
0:00:05]} 40. Qa7 {[%clk 0:00:10.1]} 40... Kg7 {[%clk 0:00:03.2]} 41. Qxb7+
{[%clk 0:00:10.2]} 41... Re7 {[%clk 0:00:03.7]} 42. Qxc6 {[%clk 0:00:10.6]}
42... Be5 {[%clk 0:00:02.9]} 43. Qxd5 {[%clk 0:00:10]} 43... Rf7 {[%clk
0:00:02.3]} 44. Qf3 {[%clk 0:00:10.1]} 44... Rb7 {[%clk 0:00:02.2]} 45. b3
{[%clk 0:00:10]} 45... Rc7 {[%clk 0:00:02.2]} 46. c4 {[%clk 0:00:10.2]} 46...
Rd7 {[%clk 0:00:02.1]} 47. Qe3 {[%clk 0:00:08.7]} 47... Rd1 {[%clk 0:00:01.6]}
48. b4 {[%clk 0:00:08.5]} 48... Ra1+ {[%clk 0:00:01.9]} 49. Kb3 {[%clk
0:00:09.2]} 49... Rb1+ {[%clk 0:00:02.3]} 50. Ka4 {[%clk 0:00:09.9]} 50... Rd1
{[%clk 0:00:02.3]} 51. c5 {[%clk 0:00:10.1]} 51... Rd8 {[%clk 0:00:02.5]} 52.
Qe4 {[%clk 0:00:10.4]} 52... Rd7 {[%clk 0:00:02.3]} 53. b5 {[%clk 0:00:10.1]}
53... Re7 {[%clk 0:00:02.8]} 54. Qd5 {[%clk 0:00:09.6]} 54... Rf7 {[%clk
0:00:02.6]} 55. c6 {[%clk 0:00:09.5]} 55... Ra7+ {[%clk 0:00:02.7]} 56. Kb3
{[%clk 0:00:09.6]} 56... Re7 {[%clk 0:00:02.6]} 57. b6 {[%clk 0:00:09.7]} 57...
Bf4 {[%clk 0:00:02.7]} 58. b7 {[%clk 0:00:09.4]} 58... Re3+ {[%clk 0:00:03]} 59.
Kc4 {[%clk 0:00:09.7]} 59... Re2 {[%clk 0:00:02.3]} 60. Qd7+ {[%clk 0:00:08.3]}
60... Kg6 {[%clk 0:00:02.3]} 61. Qd3+ {[%clk 0:00:08.9]} 61... Kg7 {[%clk
0:00:02]} 62. Qxe2 {[%clk 0:00:09.3]} 1-0

[Event "Late-Titled-Tuesday-Blitz-December-26-2023"]
[Site "Chess.com"]
[Date "2023.12.26"]
[Round "6"]
[White "Kildepiotr"]
[Black "jactorres"]
[Result "1-0"]
[WhiteElo "2677"]
[BlackElo "2504"]
[TimeControl "180+1"]
[EndTime "15:08:05 PST"]
[Termination "Kildepiotr won by resignation"]

1. Nf3 {[%clk 0:02:58.4]} 1... Nf6 {[%clk 0:02:59.7]} 2. g3 {[%clk 0:02:58.6]}
2... b5 {[%clk 0:02:59.9]} 3. Bg2 {[%clk 0:02:59.3]} 3... Bb7 {[%clk 0:03:00]}
4. O-O {[%clk 0:03:00.2]} 4... e6 {[%clk 0:02:59.9]} 5. d3 {[%clk 0:03:00.7]}
5... Be7 {[%clk 0:03:00]} 6. e4 {[%clk 0:03:00.9]} 6... d6 {[%clk 0:03:00.2]} 7.
a4 {[%clk 0:03:00.9]} 7... b4 {[%clk 0:02:57.5]} 8. b3 {[%clk 0:03:00.6]} 8...
O-O {[%clk 0:02:56.7]} 9. Bb2 {[%clk 0:03:00.9]} 9... c5 {[%clk 0:02:55.6]} 10.
Nbd2 {[%clk 0:03:00.7]} 10... Nbd7 {[%clk 0:02:55.2]} 11. Ne1 {[%clk 0:02:53.9]}
11... a5 {[%clk 0:02:50.7]} 12. e5 {[%clk 0:02:51]} 12... Nd5 {[%clk 0:02:48.1]}
13. exd6 {[%clk 0:02:50.1]} 13... Bxd6 {[%clk 0:02:46.1]} 14. Nc4 {[%clk
0:02:49.6]} 14... Be7 {[%clk 0:02:45.5]} 15. Nf3 {[%clk 0:02:48]} 15... Bf6
{[%clk 0:02:45.4]} 16. Nfe5 {[%clk 0:02:38.7]} 16... Nxe5 {[%clk 0:02:44.1]} 17.
Nxe5 {[%clk 0:02:37.7]} 17... Qc7 {[%clk 0:02:43.9]} 18. Qe2 {[%clk 0:02:34.8]}
18... Rad8 {[%clk 0:02:32]} 19. f4 {[%clk 0:02:34.4]} 19... g6 {[%clk
0:02:03.4]} 20. Rae1 {[%clk 0:02:32.9]} 20... Bg7 {[%clk 0:02:03.2]} 21. Ba1
{[%clk 0:02:25.8]} 21... Rfe8 {[%clk 0:02:00.2]} 22. Nc4 {[%clk 0:02:21.8]}
22... Nc3 {[%clk 0:01:56.9]} 23. Bxc3 {[%clk 0:02:20.8]} 23... Bxg2 {[%clk
0:01:45.8]} 24. Qxg2 {[%clk 0:02:20.4]} 24... Bxc3 {[%clk 0:01:45.4]} 25. Re4
{[%clk 0:02:18.8]} 25... Rd4 {[%clk 0:01:43.7]} 26. Kh1 {[%clk 0:02:13.8]} 26...
Red8 {[%clk 0:01:43.5]} 27. Rf2 {[%clk 0:02:10.5]} 27... Rxe4 {[%clk 0:01:34]}
28. Qxe4 {[%clk 0:02:11.4]} 28... Kg7 {[%clk 0:01:33.3]} 29. Re2 {[%clk
0:02:10.3]} 29... h5 {[%clk 0:01:28.5]} 30. Kg2 {[%clk 0:02:09.9]} 30... Bd4
{[%clk 0:01:20.5]} 31. Qf3 {[%clk 0:02:08.5]} 31... Bc3 {[%clk 0:01:19.4]} 32.
h3 {[%clk 0:02:07.7]} 32... Bd4 {[%clk 0:01:14.1]} 33. Nd2 {[%clk 0:02:05]}
33... Rd5 {[%clk 0:01:04.4]} 34. Ne4 {[%clk 0:02:02]} 34... Rf5 {[%clk 0:01:03]}
35. Ng5 {[%clk 0:01:42.1]} 35... h4 {[%clk 0:00:59.2]} 36. Re4 {[%clk
0:01:40.2]} 36... hxg3 {[%clk 0:00:57.6]} 37. h4 {[%clk 0:01:40.6]} 37... Bf6
{[%clk 0:00:53.1]} 38. Qxg3 {[%clk 0:01:30.9]} 38... e5 {[%clk 0:00:47.4]} 39.
fxe5 {[%clk 0:01:21.3]} 39... Bxg5 {[%clk 0:00:47.3]} 40. hxg5 {[%clk
0:01:20.6]} 40... Qe7 {[%clk 0:00:47.6]} 41. Qe3 {[%clk 0:00:27.7]} 41... Rxg5+
{[%clk 0:00:44.6]} 42. Kf2 {[%clk 0:00:27.6]} 42... Rf5+ {[%clk 0:00:42.9]} 43.
Ke2 {[%clk 0:00:28]} 43... Qf8 {[%clk 0:00:23.4]} 44. e6 {[%clk 0:00:25.2]}
44... fxe6 {[%clk 0:00:19.9]} 45. Rxe6 {[%clk 0:00:26.1]} 45... Rf6 {[%clk
0:00:16.7]} 46. Rxf6 {[%clk 0:00:22.7]} 46... Qxf6 {[%clk 0:00:16.8]} 47. Qxc5
{[%clk 0:00:22.7]} 47... Qe6+ {[%clk 0:00:11.1]} 48. Kd2 {[%clk 0:00:22.5]}
48... Qf6 {[%clk 0:00:06.2]} 49. Qxa5 {[%clk 0:00:17.9]} 49... Qc3+ {[%clk
0:00:05.9]} 50. Kd1 {[%clk 0:00:18.3]} 50... Qa1+ {[%clk 0:00:05.4]} 51. Ke2
{[%clk 0:00:18.7]} 51... Qc3 {[%clk 0:00:05.8]} 52. Qa7+ {[%clk 0:00:18]} 52...
Kg8 {[%clk 0:00:02.8]} 53. Qb8+ {[%clk 0:00:18]} 53... Kg7 {[%clk 0:00:02.6]}
54. Qb7+ {[%clk 0:00:18.3]} 54... Kh6 {[%clk 0:00:02.5]} 55. Qh1+ {[%clk
0:00:17.1]} 55... Kg7 {[%clk 0:00:02.6]} 56. Qd1 {[%clk 0:00:14]} 56... g5
{[%clk 0:00:02.9]} 57. Qd2 {[%clk 0:00:14.3]} 57... Qd4 {[%clk 0:00:03.1]} 58.
Qxg5+ {[%clk 0:00:13.9]} 58... Kf7 {[%clk 0:00:03.6]} 59. Qf5+ {[%clk
0:00:14.1]} 59... Kg7 {[%clk 0:00:03.7]} 60. Qe4 {[%clk 0:00:14.4]} 60... Qc3
{[%clk 0:00:04]} 61. d4 {[%clk 0:00:14.4]} 61... Kf7 {[%clk 0:00:03.4]} 62. Qf3+
{[%clk 0:00:14.1]} 1-0

[Event "Late-Titled-Tuesday-Blitz-December-26-2023"]
[Site "Chess.com"]
[Date "2023.12.26"]
[Round "6"]
[White "WPWPWP-2015"]
[Black "PawnStorn"]
[Result "1-0"]
[WhiteElo "2586"]
[BlackElo "2390"]
[TimeControl "180+1"]
[EndTime "15:08:08 PST"]
[Termination "WPWPWP-2015 won by checkmate"]

1. e4 {[%clk 0:03:00.9]} 1... e6 {[%clk 0:02:59.1]} 2. d4 {[%clk 0:03:00.7]}
2... b6 {[%clk 0:02:59.1]} 3. Nf3 {[%clk 0:02:57.6]} 3... Bb7 {[%clk 0:02:56.7]}
4. Bd3 {[%clk 0:02:57.8]} 4... c5 {[%clk 0:02:54.7]} 5. O-O {[%clk 0:02:57]}
5... cxd4 {[%clk 0:02:52.7]} 6. Nxd4 {[%clk 0:02:56.8]} 6... Nc6 {[%clk
0:02:53]} 7. Be3 {[%clk 0:02:55.4]} 7... Nf6 {[%clk 0:02:52.7]} 8. Nd2 {[%clk
0:02:54.4]} 8... h5 {[%clk 0:02:43.6]} 9. h3 {[%clk 0:02:50.3]} 9... Qc7 {[%clk
0:02:41.2]} 10. Nxc6 {[%clk 0:02:43.3]} 10... Bxc6 {[%clk 0:02:40.6]} 11. f4
{[%clk 0:02:39.8]} 11... Qb7 {[%clk 0:02:33.1]} 12. Qf3 {[%clk 0:02:35.5]} 12...
d5 {[%clk 0:02:32.6]} 13. exd5 {[%clk 0:02:30.3]} 13... Bxd5 {[%clk 0:02:30.7]}
14. Bb5+ {[%clk 0:02:29.1]} 14... Nd7 {[%clk 0:02:18.1]} 15. Qf2 {[%clk
0:02:27.7]} 15... O-O-O {[%clk 0:02:14.5]} 16. Nf3 {[%clk 0:02:08.4]} 16... Nc5
{[%clk 0:02:09.7]} 17. Qe2 {[%clk 0:02:06.1]} 17... Kb8 {[%clk 0:02:07.1]} 18.
Ne5 {[%clk 0:02:02.4]} 18... Bd6 {[%clk 0:01:57.7]} 19. a4 {[%clk 0:01:52.7]}
19... Rh6 {[%clk 0:01:37.6]} 20. a5 {[%clk 0:01:48.4]} 20... Bxe5 {[%clk
0:01:37.2]} 21. axb6 {[%clk 0:01:27.8]} 21... axb6 {[%clk 0:00:53.6]} 22. Bxc5
{[%clk 0:01:18.2]} 22... bxc5 {[%clk 0:00:46.6]} 23. fxe5 {[%clk 0:01:15.6]}
23... Bxg2 {[%clk 0:00:40.6]} 24. Ba6 {[%clk 0:00:53.8]} 24... Bxf1 {[%clk
0:00:38.3]} 25. Rxf1 {[%clk 0:00:49.1]} 25... Qb6 {[%clk 0:00:34.4]} 26. Rxf7
{[%clk 0:00:44.2]} 26... Rg6+ {[%clk 0:00:33.7]} 27. Kh2 {[%clk 0:00:41.7]}
27... Qa5 {[%clk 0:00:10.5]} 28. Bd3 {[%clk 0:00:33.7]} 28... Qa1 {[%clk
0:00:06.5]} 29. Bxg6 {[%clk 0:00:28.2]} 29... Rd1 {[%clk 0:00:07.1]} 30. Rf8+
{[%clk 0:00:25.4]} 30... Kc7 {[%clk 0:00:06.8]} 31. Rf7+ {[%clk 0:00:25.3]}
31... Kc8 {[%clk 0:00:05.7]} 32. Rf8+ {[%clk 0:00:24.2]} 32... Kc7 {[%clk
0:00:06]} 33. Rf2 {[%clk 0:00:22]} 33... Rh1+ {[%clk 0:00:05.7]} 34. Kg3 {[%clk
0:00:22.4]} 34... Re1 {[%clk 0:00:06.2]} 35. Qd3 {[%clk 0:00:13.5]} 35... Rg1+
{[%clk 0:00:05.8]} 36. Kh2 {[%clk 0:00:11.6]} 36... Rh1+ {[%clk 0:00:05.7]} 37.
Kg3 {[%clk 0:00:11.8]} 37... Rg1+ {[%clk 0:00:06.3]} 38. Kh4 {[%clk 0:00:11.4]}
38... Qe1 {[%clk 0:00:06.6]} 39. Qd6+ {[%clk 0:00:11]} 39... Kb7 {[%clk
0:00:07]} 40. Qd7+ {[%clk 0:00:09]} 40... Kb6 {[%clk 0:00:06.9]} 41. Qd6+ {[%clk
0:00:08.9]} 41... Kb7 {[%clk 0:00:07.3]} 42. Qd7+ {[%clk 0:00:09]} 42... Ka6
{[%clk 0:00:07.6]} 43. Qxe6+ {[%clk 0:00:09.2]} 43... Ka5 {[%clk 0:00:07.8]} 44.
Qa2+ {[%clk 0:00:09.1]} 44... Kb6 {[%clk 0:00:08.3]} 45. Qb3+ {[%clk 0:00:09.3]}
45... Ka5 {[%clk 0:00:08.5]} 46. Qc3+ {[%clk 0:00:09.1]} 46... Qxc3 {[%clk
0:00:08.4]} 47. bxc3 {[%clk 0:00:09.6]} 47... Rxg6 {[%clk 0:00:08.8]} 48. Kxh5
{[%clk 0:00:09.5]} 48... Rh6+ {[%clk 0:00:06.2]} 49. Kg4 {[%clk 0:00:09.5]}
49... Re6 {[%clk 0:00:06.3]} 50. Re2 {[%clk 0:00:09.8]} 50... g6 {[%clk
0:00:06]} 51. h4 {[%clk 0:00:08.9]} 51... Kb5 {[%clk 0:00:06.4]} 52. h5 {[%clk
0:00:09]} 52... gxh5+ {[%clk 0:00:06.3]} 53. Kf5 {[%clk 0:00:09.5]} 53... Re8
{[%clk 0:00:06.1]} 54. e6 {[%clk 0:00:10]} 54... Kc6 {[%clk 0:00:06.6]} 55. Kf6
{[%clk 0:00:10.1]} 55... Rf8+ {[%clk 0:00:06.2]} 56. Kg7 {[%clk 0:00:09.9]}
56... Ra8 {[%clk 0:00:03.4]} 57. e7 {[%clk 0:00:10.3]} 57... h4 {[%clk
0:00:03.9]} 58. e8=Q+ {[%clk 0:00:09.9]} 58... Rxe8 {[%clk 0:00:04.6]} 59. Rxe8
{[%clk 0:00:10.1]} 59... h3 {[%clk 0:00:05.1]} 60. Rh8 {[%clk 0:00:10.3]} 60...
Kb5 {[%clk 0:00:06]} 61. Rxh3 {[%clk 0:00:10.5]} 61... Kc4 {[%clk 0:00:06.3]}
62. Rg3 {[%clk 0:00:11]} 62... Kd5 {[%clk 0:00:06.7]} 63. Kf6 {[%clk 0:00:11.6]}
63... Ke4 {[%clk 0:00:07.6]} 64. Ke6 {[%clk 0:00:11.3]} 64... c4 {[%clk
0:00:08]} 65. Kf6 {[%clk 0:00:11.7]} 65... Kf4 {[%clk 0:00:08.1]} 66. Rh3 {[%clk
0:00:12.1]} 66... Ke4 {[%clk 0:00:08.8]} 67. Kg5 {[%clk 0:00:11.9]} 67... Kd5
{[%clk 0:00:09.5]} 68. Kf5 {[%clk 0:00:12.3]} 68... Kc5 {[%clk 0:00:10.4]} 69.
Ke5 {[%clk 0:00:12.8]} 69... Kb5 {[%clk 0:00:11.3]} 70. Kd5 {[%clk 0:00:13.2]}
70... Ka4 {[%clk 0:00:12.2]} 71. Kxc4 {[%clk 0:00:13.2]} 71... Ka3 {[%clk
0:00:12.4]} 72. Rh5 {[%clk 0:00:12.7]} 72... Ka4 {[%clk 0:00:13.3]} 73. Rg5
{[%clk 0:00:12.2]} 73... Ka3 {[%clk 0:00:13.5]} 74. Kd3 {[%clk 0:00:12.1]} 74...
Kb2 {[%clk 0:00:14.4]} 75. Rb5+ {[%clk 0:00:11.7]} 75... Kc1 {[%clk 0:00:15]}
76. Rb6 {[%clk 0:00:11.1]} 76... Kd1 {[%clk 0:00:14.7]} 77. Rb1# {[%clk
0:00:11.7]} 1-0

[Event "Late-Titled-Tuesday-Blitz-December-26-2023"]
[Site "Chess.com"]
[Date "2023.12.26"]
[Round "6"]
[White "gxbg2000"]
[Black "KorolDimitriy75"]
[Result "0-1"]
[WhiteElo "1995"]
[BlackElo "2342"]
[TimeControl "180+1"]
[EndTime "15:08:09 PST"]
[Termination "KorolDimitriy75 won by resignation"]

1. e4 {[%clk 0:03:00.9]} 1... c5 {[%clk 0:02:55.2]} 2. Nf3 {[%clk 0:03:00.4]}
2... d6 {[%clk 0:02:52.2]} 3. d4 {[%clk 0:03:01]} 3... cxd4 {[%clk 0:02:53.1]}
4. Nxd4 {[%clk 0:03:00.1]} 4... Nf6 {[%clk 0:02:53.2]} 5. Bd3 {[%clk 0:02:58.9]}
5... g6 {[%clk 0:02:53.7]} 6. O-O {[%clk 0:02:58.7]} 6... Bg7 {[%clk 0:02:54.3]}
7. c3 {[%clk 0:02:59.3]} 7... O-O {[%clk 0:02:54.5]} 8. Bg5 {[%clk 0:02:59]}
8... Nc6 {[%clk 0:02:55.1]} 9. Nxc6 {[%clk 0:02:58.1]} 9... bxc6 {[%clk
0:02:56]} 10. Qe2 {[%clk 0:02:57.9]} 10... Rb8 {[%clk 0:02:53.7]} 11. Na3 {[%clk
0:02:55.7]} 11... Qa5 {[%clk 0:02:28.2]} 12. Bh4 {[%clk 0:02:47.1]} 12... Be6
{[%clk 0:02:16.2]} 13. Nc4 {[%clk 0:02:42.9]} 13... Qc7 {[%clk 0:01:48.3]} 14.
b3 {[%clk 0:02:37.2]} 14... Rfe8 {[%clk 0:01:19.8]} 15. Rac1 {[%clk 0:02:36.3]}
15... Qb7 {[%clk 0:01:10.6]} 16. Bg3 {[%clk 0:02:30.9]} 16... Rbd8 {[%clk
0:01:07.9]} 17. Kh1 {[%clk 0:02:28.1]} 17... d5 {[%clk 0:01:07.5]} 18. exd5
{[%clk 0:02:20.8]} 18... cxd5 {[%clk 0:01:08.4]} 19. Ne5 {[%clk 0:02:17.6]}
19... Nd7 {[%clk 0:00:58.8]} 20. h3 {[%clk 0:01:57.1]} 20... Nxe5 {[%clk
0:00:54.3]} 21. Bxe5 {[%clk 0:01:56.7]} 21... f6 {[%clk 0:00:51.8]} 22. Bg3
{[%clk 0:01:47]} 22... Bf7 {[%clk 0:00:51.8]} 23. f4 {[%clk 0:01:43.6]} 23... e5
{[%clk 0:00:49.6]} 24. fxe5 {[%clk 0:01:43.5]} 24... fxe5 {[%clk 0:00:50.4]} 25.
Bb5 {[%clk 0:01:40.6]} 25... Rf8 {[%clk 0:00:47.2]} 26. Bxe5 {[%clk 0:01:27.5]}
26... Bxe5 {[%clk 0:00:45.8]} 27. Qxe5 {[%clk 0:01:23.6]} 27... Qxb5 {[%clk
0:00:45.8]} 28. Rf3 {[%clk 0:01:11.6]} 28... Rde8 {[%clk 0:00:36.9]} 29. Qg5
{[%clk 0:01:05.8]} 29... Qe2 {[%clk 0:00:20.6]} 30. Rcf1 {[%clk 0:01:02.5]}
30... Qe5 {[%clk 0:00:18.1]} 31. Qh6 {[%clk 0:01:00.9]} 31... Qg7 {[%clk
0:00:16.3]} 32. Qg5 {[%clk 0:00:58.6]} 32... Be6 {[%clk 0:00:13.6]} 33. Rxf8+
{[%clk 0:00:50.3]} 33... Rxf8 {[%clk 0:00:14.5]} 34. Rxf8+ {[%clk 0:00:50.1]}
34... Qxf8 {[%clk 0:00:15.4]} 35. Qe5 {[%clk 0:00:48.3]} 35... Qf7 {[%clk
0:00:15.4]} 36. Kh2 {[%clk 0:00:45.1]} 36... Qd7 {[%clk 0:00:14.3]} 37. b4
{[%clk 0:00:34.9]} 37... Bf5 {[%clk 0:00:13.5]} 38. a4 {[%clk 0:00:32.7]} 38...
Be4 {[%clk 0:00:12.7]} 39. c4 {[%clk 0:00:27.4]} 39... Qf5 {[%clk 0:00:08]} 40.
Qb8+ {[%clk 0:00:24.2]} 40... Qf8 {[%clk 0:00:04.8]} 41. Qe5 {[%clk 0:00:19.6]}
41... Qf7 {[%clk 0:00:03]} 42. Qb8+ {[%clk 0:00:16.8]} 42... Qf8 {[%clk
0:00:03]} 43. Qe5 {[%clk 0:00:16.6]} 43... Qf2 {[%clk 0:00:02.7]} 44. Qe6+
{[%clk 0:00:13.7]} 44... Kg7 {[%clk 0:00:02.7]} 45. Qe7+ {[%clk 0:00:12.3]}
45... Kh6 {[%clk 0:00:02.9]} 46. Qh4+ {[%clk 0:00:07]} 46... Qxh4 {[%clk
0:00:02.9]} 47. g3 {[%clk 0:00:06.9]} 47... Qf6 {[%clk 0:00:03.6]} 48. h4 {[%clk
0:00:06.9]} 48... Qf2+ {[%clk 0:00:03.8]} 49. Kh3 {[%clk 0:00:07.2]} 49... Bg2+
{[%clk 0:00:04.1]} 50. Kg4 {[%clk 0:00:07.4]} 50... Qxg3+ {[%clk 0:00:04]} 51.
Kxg3 {[%clk 0:00:07.2]} 51... Be4 {[%clk 0:00:03.9]} 52. cxd5 {[%clk 0:00:05.2]}
52... Bxd5 {[%clk 0:00:03.8]} 53. Kf4 {[%clk 0:00:06.1]} 53... Kg7 {[%clk
0:00:03.5]} 54. Ke5 {[%clk 0:00:06.5]} 54... Bg2 {[%clk 0:00:03.5]} 55. b5
{[%clk 0:00:06.4]} 55... h6 {[%clk 0:00:03.7]} 56. a5 {[%clk 0:00:06.9]} 56...
Bf1 {[%clk 0:00:03.3]} 57. b6 {[%clk 0:00:07]} 57... axb6 {[%clk 0:00:03.5]} 58.
axb6 {[%clk 0:00:06]} 58... Bg2 {[%clk 0:00:04.4]} 59. Kf4 {[%clk 0:00:05.6]}
59... Bb7 {[%clk 0:00:04]} 60. Kg4 {[%clk 0:00:05.1]} 60... Kf6 {[%clk
0:00:04.2]} 61. Kf4 {[%clk 0:00:05.5]} 61... g5+ {[%clk 0:00:03.8]} 62. hxg5+
{[%clk 0:00:05.4]} 62... hxg5+ {[%clk 0:00:04.7]} 63. Kg4 {[%clk 0:00:06.1]}
63... Kg6 {[%clk 0:00:05]} 64. Kh3 {[%clk 0:00:05.6]} 64... Kf5 {[%clk
0:00:05.2]} 65. Kg3 {[%clk 0:00:06.5]} 65... g4 {[%clk 0:00:05.3]} 66. Kh4
{[%clk 0:00:06.7]} 66... Kf4 {[%clk 0:00:04.9]} 67. Kh5 {[%clk 0:00:05.9]} 67...
g3 {[%clk 0:00:05.3]} 0-1